[Event "*** Titled Tuesday Blitz"]
[Site "Chess.com"]
[Date "2018.05.01"]
[Round "1"]
[White "arna"]
[Black "MartinZumsande"]
[Result "1/2-1/2"]
[WhiteElo "2114"]
[BlackElo "2462"]
[TimeControl "180+2"]
[EndTime "13:09:16 PDT"]
[Termination "Game drawn by agreement"]

1. e4 {[%clk 0:02:57.9]} 1... e6 {[%clk 0:03:01]} 2. d4 {[%clk 0:02:55.7]} 2...
d5 {[%clk 0:03:02.2]} 3. exd5 {[%clk 0:02:56.7]} 3... exd5 {[%clk 0:03:02.6]} 4.
Bd3 {[%clk 0:02:57.6]} 4... c5 {[%clk 0:03:03]} 5. Qf3 {[%clk 0:02:45.2]} 5...
cxd4 {[%clk 0:02:52.1]} 6. Ne2 {[%clk 0:02:40.8]} 6... Nc6 {[%clk 0:02:52.5]} 7.
Qg3 {[%clk 0:02:36.2]} 7... g6 {[%clk 0:02:32.4]} 8. O-O {[%clk 0:02:16.4]} 8...
Bg7 {[%clk 0:02:31.6]} 9. Bg5 {[%clk 0:02:15.1]} 9... Nge7 {[%clk 0:02:31.9]}
10. Qh4 {[%clk 0:02:10.8]} 10... h6 {[%clk 0:02:25.2]} 11. Bf6 {[%clk
0:02:08.1]} 11... O-O {[%clk 0:02:23]} 12. Bxg7 {[%clk 0:02:01.4]} 12... Kxg7
{[%clk 0:02:23.7]} 13. Nd2 {[%clk 0:01:35.9]} 13... Nf5 {[%clk 0:02:18.4]} 14.
Qxd8 {[%clk 0:01:35.2]} 14... Rxd8 {[%clk 0:02:19.3]} 15. Nb3 {[%clk 0:01:25.1]}
15... Kf6 {[%clk 0:01:48]} 16. Bxf5 {[%clk 0:01:09]} 16... Bxf5 {[%clk 0:01:49]}
17. Nexd4 {[%clk 0:01:10.1]} 17... Nxd4 {[%clk 0:01:45.9]} 18. Nxd4 {[%clk
0:01:12]} 18... Bd7 {[%clk 0:01:40.8]} 19. Rad1 {[%clk 0:01:07.7]} 19... Rac8
{[%clk 0:01:40.2]} 20. c3 {[%clk 0:01:08.6]} 20... h5 {[%clk 0:01:36.6]} 21. h4
{[%clk 0:01:05]} 21... a5 {[%clk 0:01:34.3]} 22. Rd2 {[%clk 0:00:59]} 22... Be6
{[%clk 0:01:29.5]} 23. f3 {[%clk 0:00:49.1]} 23... Re8 {[%clk 0:01:29.7]} 24.
Kf2 {[%clk 0:00:50.1]} 24... Rb8 {[%clk 0:01:23.8]} 25. Nb5 {[%clk 0:00:46.6]}
25... Red8 {[%clk 0:01:15.7]} 26. Rfd1 {[%clk 0:00:40]} 26... Ke7 {[%clk
0:01:16.4]} 27. Nc7 {[%clk 0:00:16.1]} 27... a4 {[%clk 0:01:16.4]} 28. Nxd5+
{[%clk 0:00:15.4]} 28... Bxd5 {[%clk 0:01:17.5]} 29. Rxd5 {[%clk 0:00:17.3]}
29... Rxd5 {[%clk 0:01:18.7]} 30. Rxd5 {[%clk 0:00:18.9]} 30... a3 {[%clk
0:01:20.6]} 31. b3 {[%clk 0:00:17.7]} 31... Rc8 {[%clk 0:01:20.4]} 32. c4 {[%clk
0:00:18.2]} 32... Ke6 {[%clk 0:01:21.5]} 33. Ra5 {[%clk 0:00:18.6]} 33... Rd8
{[%clk 0:01:21.9]} 34. Ke2 {[%clk 0:00:20.2]} 34... f6 {[%clk 0:01:17.6]} 35.
Rxa3 {[%clk 0:00:13.9]} 35... Kf5 {[%clk 0:01:18.9]} 36. g3 {[%clk 0:00:12.8]}
36... Re8+ {[%clk 0:01:18.6]} 37. Kf2 {[%clk 0:00:12.2]} 37... Rd8 {[%clk
0:01:19.9]} 38. Ra5+ {[%clk 0:00:13.3]} 38... Ke6 {[%clk 0:01:20.7]} 39. Ke2
{[%clk 0:00:14]} 39... Rd7 {[%clk 0:01:20.5]} 40. Rb5 {[%clk 0:00:14.8]} 40...
Kd6 {[%clk 0:01:20.2]} 41. g4 {[%clk 0:00:09.8]} 41... hxg4 {[%clk 0:01:18.8]}
42. fxg4 {[%clk 0:00:11]} 42... Kc6 {[%clk 0:01:19.8]} 43. h5 {[%clk 0:00:10.1]}
43... gxh5 {[%clk 0:01:19.9]} 44. gxh5 {[%clk 0:00:12]} 44... Rg7 {[%clk
0:01:21.2]} 45. Kf2 {[%clk 0:00:11.9]} 45... Rd7 {[%clk 0:01:22]} 46. Rd5 {[%clk
0:00:11.7]} 46... Rh7 {[%clk 0:01:20.7]} 47. b4 {[%clk 0:00:10.5]} 47... b6
{[%clk 0:01:21.8]} 48. a4 {[%clk 0:00:10.5]} 48... Ra7 {[%clk 0:01:22.1]} 49. a5
{[%clk 0:00:10.9]} 49... bxa5 {[%clk 0:01:22.9]} 50. Rxa5 {[%clk 0:00:09.7]}
50... Rh7 {[%clk 0:01:22.2]} 51. Rf5 {[%clk 0:00:10.2]} 51... Kb7 {[%clk
0:01:20.9]} 52. Kf3 {[%clk 0:00:07.4]} 52... Rd7 {[%clk 0:01:21.7]} 53. Rxf6
{[%clk 0:00:06.3]} 53... Rd1 {[%clk 0:01:22.7]} 54. h6 {[%clk 0:00:04.6]} 54...
Rf1+ {[%clk 0:01:23.7]} 55. Kg4 {[%clk 0:00:06.1]} 55... Rxf6 {[%clk 0:01:25.6]}
56. Kg5 {[%clk 0:00:06.5]} 56... Rf1 {[%clk 0:01:25.8]} 57. h7 {[%clk
0:00:07.5]} 57... Rg1+ {[%clk 0:01:25.3]} 58. Kf6 {[%clk 0:00:08.4]} 58... Rh1
{[%clk 0:01:26.3]} 59. Kg7 {[%clk 0:00:09.4]} 59... Rg1+ {[%clk 0:01:27.4]} 60.
Kf7 {[%clk 0:00:10.7]} 60... Rh1 {[%clk 0:01:27.1]} 61. Kg7 {[%clk 0:00:11.3]}
61... Rg1+ {[%clk 0:01:28.5]} 62. Kf7 {[%clk 0:00:11.2]} 62... Rh1 {[%clk
0:01:29.6]} 1/2-1/2

[Event "*** Titled Tuesday Blitz"]
[Site "Chess.com"]
[Date "2018.05.01"]
[Round "1"]
[White "dukicz123"]
[Black "Sven_Tica"]
[Result "1/2-1/2"]
[WhiteElo "2315"]
[BlackElo "2628"]
[TimeControl "180+2"]
[EndTime "13:09:19 PDT"]
[Termination "Game drawn by agreement"]

1. e4 {[%clk 0:03:01.9]} 1... c6 {[%clk 0:03:00.6]} 2. d3 {[%clk 0:03:02.2]}
2... d5 {[%clk 0:03:02.5]} 3. Nd2 {[%clk 0:03:01.3]} 3... e5 {[%clk 0:03:03.7]}
4. Ngf3 {[%clk 0:03:01]} 4... Bd6 {[%clk 0:03:04.7]} 5. g3 {[%clk 0:03:02]} 5...
Nf6 {[%clk 0:03:04.9]} 6. Bg2 {[%clk 0:03:03.2]} 6... O-O {[%clk 0:03:03.1]} 7.
O-O {[%clk 0:03:03.9]} 7... Bg4 {[%clk 0:03:01.9]} 8. h3 {[%clk 0:03:03]} 8...
Bh5 {[%clk 0:03:02.8]} 9. Qe1 {[%clk 0:03:04.3]} 9... Bxf3 {[%clk 0:02:58.3]}
10. Nxf3 {[%clk 0:02:56.5]} 10... d4 {[%clk 0:02:53.9]} 11. Nh4 {[%clk
0:02:51.4]} 11... Re8 {[%clk 0:02:52.5]} 12. f4 {[%clk 0:02:44]} 12... Nbd7
{[%clk 0:02:46.8]} 13. f5 {[%clk 0:02:25.6]} 13... h6 {[%clk 0:02:48]} 14. g4
{[%clk 0:02:26.6]} 14... Nh7 {[%clk 0:02:49.1]} 15. Nf3 {[%clk 0:02:21.8]} 15...
c5 {[%clk 0:02:42.8]} 16. Qg3 {[%clk 0:02:15.7]} 16... Be7 {[%clk 0:02:11.3]}
17. h4 {[%clk 0:01:52.2]} 17... f6 {[%clk 0:02:11.7]} 18. Kh2 {[%clk 0:01:23]}
18... Nb6 {[%clk 0:02:10.9]} 19. Bh3 {[%clk 0:01:17.6]} 19... Nc8 {[%clk
0:02:10.9]} 20. Rg1 {[%clk 0:01:07.1]} 20... Nd6 {[%clk 0:02:03.7]} 21. g5
{[%clk 0:01:07.5]} 21... fxg5 {[%clk 0:02:04.7]} 22. hxg5 {[%clk 0:01:09.4]}
22... Nxg5 {[%clk 0:02:05.7]} 23. Nxg5 {[%clk 0:01:10.6]} 23... Bxg5 {[%clk
0:02:03.8]} 24. Bxg5 {[%clk 0:01:12]} 24... hxg5 {[%clk 0:01:55.4]} 25. Qxg5
{[%clk 0:00:57.7]} 25... Qe7 {[%clk 0:01:55.6]} 26. f6 {[%clk 0:00:55.2]} 26...
Qf7 {[%clk 0:01:52.3]} 27. Raf1 {[%clk 0:00:42.1]} 27... g6 {[%clk 0:01:26.8]}
28. Qh6 {[%clk 0:00:37.9]} 28... Qh7 {[%clk 0:01:24.6]} 29. f7+ {[%clk
0:00:30.6]} 29... Nxf7 {[%clk 0:01:23.1]} 30. Qxh7+ {[%clk 0:00:29.2]} 30...
Kxh7 {[%clk 0:01:25]} 31. Rxf7+ {[%clk 0:00:30.4]} 31... Kh6 {[%clk 0:01:26.5]}
32. Rf6 {[%clk 0:00:25.2]} 32... Rg8 {[%clk 0:01:27.5]} 33. Bf5 {[%clk
0:00:26.2]} 33... Raf8 {[%clk 0:01:27.4]} 34. Rfxg6+ {[%clk 0:00:23.4]} 34...
Rxg6 {[%clk 0:01:28.5]} 35. Rxg6+ {[%clk 0:00:25.3]} 35... Kh5 {[%clk
0:01:30.2]} 36. Kg3 {[%clk 0:00:25.5]} 36... b6 {[%clk 0:01:21.7]} 37. Rg7
{[%clk 0:00:26.3]} 37... a6 {[%clk 0:01:20.2]} 38. Rg6 {[%clk 0:00:19.9]} 38...
Rb8 {[%clk 0:01:20]} 39. Rg7 {[%clk 0:00:18.5]} 39... b5 {[%clk 0:01:18.5]} 40.
Kf3 {[%clk 0:00:19.5]} 40... c4 {[%clk 0:01:19.6]} 41. Rc7 {[%clk 0:00:19.6]}
41... Kg5 {[%clk 0:01:17.3]} 42. Rc6 {[%clk 0:00:19.8]} 42... a5 {[%clk
0:01:17.8]} 43. Rg6+ {[%clk 0:00:20.9]} 43... Kh5 {[%clk 0:01:18.7]} 44. dxc4
{[%clk 0:00:22.3]} 44... bxc4 {[%clk 0:01:19.6]} 45. Rc6 {[%clk 0:00:22.6]}
45... Rxb2 {[%clk 0:01:18.5]} 46. Rxc4 {[%clk 0:00:23.8]} 46... Rxa2 {[%clk
0:01:20.1]} 47. Bd7 {[%clk 0:00:24.3]} 47... Kg5 {[%clk 0:01:19.4]} 48. Ba4
{[%clk 0:00:25.2]} 48... Ra3+ {[%clk 0:01:20.2]} 49. Bb3 {[%clk 0:00:22.7]}
49... Ra1 {[%clk 0:01:21.4]} 50. Ra4 {[%clk 0:00:23.7]} 50... Re1 {[%clk
0:01:22.4]} 51. Bd5 {[%clk 0:00:20.5]} 51... Re3+ {[%clk 0:01:22.2]} 52. Kf2
{[%clk 0:00:21.3]} 52... Rc3 {[%clk 0:01:23.4]} 53. Bb3 {[%clk 0:00:21.5]} 53...
Kf4 {[%clk 0:01:18.1]} 54. Rxa5 {[%clk 0:00:18.7]} 54... Kxe4 {[%clk 0:01:19.4]}
55. Bd5+ {[%clk 0:00:19]} 55... Kf4 {[%clk 0:01:20.5]} 56. Ra2 {[%clk
0:00:18.7]} 56... e4 {[%clk 0:01:19.7]} 57. Ke2 {[%clk 0:00:20]} 57... Rh3
{[%clk 0:01:19.7]} 58. Ra8 {[%clk 0:00:17.8]} 58... Rh2+ {[%clk 0:01:20.1]} 59.
Kd1 {[%clk 0:00:19]} 59... Ke3 {[%clk 0:01:20.8]} 60. Bxe4 {[%clk 0:00:13.7]}
60... Kxe4 {[%clk 0:01:19.3]} 61. Re8+ {[%clk 0:00:14.8]} 61... Kd5 {[%clk
0:01:19.9]} 62. Rd8+ {[%clk 0:00:15.8]} 62... Ke5 {[%clk 0:01:21.3]} 63. Re8+
{[%clk 0:00:17.3]} 63... Kd6 {[%clk 0:01:22.5]} 64. Rd8+ {[%clk 0:00:18.7]}
64... Kc5 {[%clk 0:01:23.9]} 65. Rc8+ {[%clk 0:00:20.1]} 65... Kd5 {[%clk
0:01:25.1]} 66. Rd8+ {[%clk 0:00:21.3]} 66... Kc4 {[%clk 0:01:26.7]} 67. Rc8+
{[%clk 0:00:22.8]} 1/2-1/2

[Event "*** Titled Tuesday Blitz"]
[Site "Chess.com"]
[Date "2018.05.01"]
[Round "1"]
[White "MFBerna"]
[Black "temiksmozg"]
[Result "0-1"]
[WhiteElo "2278"]
[BlackElo "2583"]
[TimeControl "180+2"]
[EndTime "13:09:26 PDT"]
[Termination "temiksmozg won on time"]

1. e4 {[%clk 0:03:01.5]} 1... e6 {[%clk 0:02:57.7]} 2. d4 {[%clk 0:03:02.3]}
2... d5 {[%clk 0:02:59]} 3. Nd2 {[%clk 0:03:01]} 3... Nf6 {[%clk 0:02:53.5]} 4.
exd5 {[%clk 0:02:58.4]} 4... exd5 {[%clk 0:02:52.5]} 5. Ngf3 {[%clk 0:02:59.3]}
5... Bd6 {[%clk 0:02:51.2]} 6. Bd3 {[%clk 0:02:59.2]} 6... O-O {[%clk
0:02:51.4]} 7. O-O {[%clk 0:03:00]} 7... Bg4 {[%clk 0:02:51.5]} 8. h3 {[%clk
0:02:59.9]} 8... Bh5 {[%clk 0:02:51.1]} 9. c3 {[%clk 0:02:59.3]} 9... c6 {[%clk
0:02:48.6]} 10. Qc2 {[%clk 0:02:57.9]} 10... Nbd7 {[%clk 0:02:47.9]} 11. Nh4
{[%clk 0:02:47]} 11... Re8 {[%clk 0:02:41.4]} 12. Nf5 {[%clk 0:02:47]} 12... Bf8
{[%clk 0:02:28.2]} 13. Ng3 {[%clk 0:02:47.1]} 13... Bg6 {[%clk 0:02:29.3]} 14.
Nf3 {[%clk 0:02:42.6]} 14... Ne4 {[%clk 0:02:23.2]} 15. Bf4 {[%clk 0:02:40.7]}
15... Qf6 {[%clk 0:02:17.6]} 16. Bd2 {[%clk 0:02:19.8]} 16... Bd6 {[%clk
0:01:31.9]} 17. Rae1 {[%clk 0:01:43.2]} 17... Bxg3 {[%clk 0:01:11.9]} 18. fxg3
{[%clk 0:01:36.8]} 18... Nxg3 {[%clk 0:01:12.8]} 19. Rxe8+ {[%clk 0:01:27]}
19... Rxe8 {[%clk 0:01:14.7]} 20. Rf2 {[%clk 0:01:25.7]} 20... Bxd3 {[%clk
0:01:14]} 21. Qxd3 {[%clk 0:01:27.6]} 21... Ne4 {[%clk 0:01:14.2]} 22. Rf1
{[%clk 0:01:25.9]} 22... Ng3 {[%clk 0:01:05.4]} 23. Rf2 {[%clk 0:01:20.1]} 23...
Qg6 {[%clk 0:01:06.2]} 24. Qxg6 {[%clk 0:01:01.3]} 24... hxg6 {[%clk 0:01:08.1]}
25. Kh2 {[%clk 0:00:48.5]} 25... Ne4 {[%clk 0:01:08.7]} 26. Re2 {[%clk
0:00:47.4]} 26... f6 {[%clk 0:01:10]} 27. Be1 {[%clk 0:00:40.6]} 27... Kf7
{[%clk 0:01:08.3]} 28. g4 {[%clk 0:00:31.1]} 28... g5 {[%clk 0:01:03.9]} 29. Kg2
{[%clk 0:00:30.4]} 29... Nf8 {[%clk 0:01:02.8]} 30. Re3 {[%clk 0:00:27.7]} 30...
Ng6 {[%clk 0:00:45.4]} 31. Bg3 {[%clk 0:00:27.6]} 31... b6 {[%clk 0:00:35.5]}
32. Bh2 {[%clk 0:00:27.2]} 32... Nf4+ {[%clk 0:00:33]} 33. Bxf4 {[%clk
0:00:27.7]} 33... gxf4 {[%clk 0:00:34.9]} 34. Re1 {[%clk 0:00:27.3]} 34... g5
{[%clk 0:00:36.8]} 35. h4 {[%clk 0:00:23.7]} 35... c5 {[%clk 0:00:33.4]} 36.
dxc5 {[%clk 0:00:22.3]} 36... bxc5 {[%clk 0:00:33.6]} 37. h5 {[%clk 0:00:23.5]}
37... f5 {[%clk 0:00:28.7]} 38. Nh2 {[%clk 0:00:11.1]} 38... Kf6 {[%clk
0:00:25.5]} 39. Kf3 {[%clk 0:00:08.9]} 39... Nd2+ {[%clk 0:00:24.3]} 40. Kf2
{[%clk 0:00:10.1]} 40... Rxe1 {[%clk 0:00:21.3]} 41. Kxe1 {[%clk 0:00:12]} 41...
Nc4 {[%clk 0:00:20.9]} 42. gxf5 {[%clk 0:00:12.1]} 42... Kxf5 {[%clk 0:00:21.2]}
43. h6 {[%clk 0:00:10.8]} 43... Kg6 {[%clk 0:00:21.8]} 44. Ng4 {[%clk
0:00:11.8]} 44... Nxb2 {[%clk 0:00:21.6]} 45. Kd2 {[%clk 0:00:07.8]} 45... Nc4+
{[%clk 0:00:21.2]} 46. Kd3 {[%clk 0:00:08.3]} 46... a5 {[%clk 0:00:22.1]} 47. h7
{[%clk 0:00:04.9]} 47... Kxh7 {[%clk 0:00:22.3]} 0-1

[Event "*** Titled Tuesday Blitz"]
[Site "Chess.com"]
[Date "2018.05.01"]
[Round "1"]
[White "severomorskij"]
[Black "LoydBlankenship"]
[Result "0-1"]
[WhiteElo "2660"]
[BlackElo "2375"]
[TimeControl "180+2"]
[EndTime "13:09:27 PDT"]
[Termination "LoydBlankenship won on time"]

1. d4 {[%clk 0:02:56.5]} 1... Nf6 {[%clk 0:02:59.5]} 2. c4 {[%clk 0:02:56.3]}
2... g6 {[%clk 0:02:59.9]} 3. Nc3 {[%clk 0:02:56.6]} 3... Bg7 {[%clk 0:03:00.9]}
4. e4 {[%clk 0:02:57]} 4... O-O {[%clk 0:03:02.4]} 5. Bd3 {[%clk 0:02:58.2]}
5... d6 {[%clk 0:03:03.7]} 6. Nge2 {[%clk 0:02:58.8]} 6... c5 {[%clk 0:03:04.8]}
7. d5 {[%clk 0:02:59.3]} 7... e6 {[%clk 0:03:06.1]} 8. Bg5 {[%clk 0:03:00.1]}
8... h6 {[%clk 0:03:05.4]} 9. Bh4 {[%clk 0:03:00.2]} 9... Qa5 {[%clk 0:02:56.7]}
10. O-O {[%clk 0:02:57.1]} 10... exd5 {[%clk 0:02:52.8]} 11. exd5 {[%clk
0:02:57.1]} 11... Nbd7 {[%clk 0:02:51.1]} 12. f4 {[%clk 0:02:58]} 12... Re8
{[%clk 0:02:50.9]} 13. h3 {[%clk 0:02:52.6]} 13... a6 {[%clk 0:02:51.5]} 14. a4
{[%clk 0:02:50.6]} 14... Qd8 {[%clk 0:02:25.4]} 15. Qc2 {[%clk 0:02:45.3]} 15...
Nf8 {[%clk 0:02:16.4]} 16. Rae1 {[%clk 0:02:45.1]} 16... Qd7 {[%clk 0:02:09.9]}
17. Kh1 {[%clk 0:02:28.3]} 17... N8h7 {[%clk 0:02:08.6]} 18. a5 {[%clk
0:01:59.1]} 18... Qc7 {[%clk 0:01:57.7]} 19. Ra1 {[%clk 0:01:36.1]} 19... Bd7
{[%clk 0:01:56.4]} 20. Ng3 {[%clk 0:01:09.2]} 20... Re7 {[%clk 0:01:32.3]} 21.
Nge4 {[%clk 0:00:58]} 21... Rae8 {[%clk 0:01:27.8]} 22. Nxf6+ {[%clk 0:00:55.3]}
22... Nxf6 {[%clk 0:01:24.7]} 23. Kh2 {[%clk 0:00:44.4]} 23... Kh7 {[%clk
0:01:19.5]} 24. Ne4 {[%clk 0:00:34.5]} 24... Nxe4 {[%clk 0:00:46.9]} 25. Bxe7
{[%clk 0:00:34]} 25... f5 {[%clk 0:00:46.7]} 26. Bxe4 {[%clk 0:00:30.6]} 26...
fxe4 {[%clk 0:00:46.9]} 27. Bh4 {[%clk 0:00:32]} 27... Bd4 {[%clk 0:00:42.9]}
28. Qe2 {[%clk 0:00:26]} 28... Bc8 {[%clk 0:00:31.2]} 29. g4 {[%clk 0:00:26.6]}
29... Qg7 {[%clk 0:00:31.1]} 30. Rab1 {[%clk 0:00:26]} 30... Bd7 {[%clk
0:00:25.8]} 31. b4 {[%clk 0:00:26]} 31... Bc8 {[%clk 0:00:19.9]} 32. bxc5 {[%clk
0:00:26.3]} 32... Bxc5 {[%clk 0:00:21.8]} 33. Bg3 {[%clk 0:00:24.2]} 33... Qd4
{[%clk 0:00:21.6]} 34. f5 {[%clk 0:00:21.1]} 34... g5 {[%clk 0:00:22.6]} 35. f6
{[%clk 0:00:21.3]} 35... Kg6 {[%clk 0:00:21.9]} 36. f7 {[%clk 0:00:19]} 36...
Rf8 {[%clk 0:00:21.9]} 37. Rbe1 {[%clk 0:00:20.3]} 37... e3 {[%clk 0:00:22.9]}
38. Qf3 {[%clk 0:00:18.8]} 38... Kg7 {[%clk 0:00:23.5]} 39. Re2 {[%clk 0:00:18]}
39... Bd7 {[%clk 0:00:24.6]} 40. Rc2 {[%clk 0:00:11.5]} 40... Ba4 {[%clk
0:00:23.7]} 41. Re2 {[%clk 0:00:12.8]} 41... Bb3 {[%clk 0:00:23.2]} 42. Rxe3
{[%clk 0:00:06.7]} 42... Bxc4 {[%clk 0:00:23.8]} 43. Re4 {[%clk 0:00:06.5]}
43... Bxd5 {[%clk 0:00:23.6]} 44. Rxd4 {[%clk 0:00:06.9]} 44... Bxf3 {[%clk
0:00:25.2]} 45. Rxd6 {[%clk 0:00:07]} 45... Be2 {[%clk 0:00:23.3]} 46. Re1
{[%clk 0:00:05.6]} 46... Bb5 {[%clk 0:00:18.1]} 47. Rd5 {[%clk 0:00:05.6]} 47...
Bb4 {[%clk 0:00:17.7]} 48. Rb1 {[%clk 0:00:05.2]} 48... Bxa5 {[%clk 0:00:18.2]}
49. Rdxb5 {[%clk 0:00:03.9]} 49... axb5 {[%clk 0:00:18.8]} 50. Rxb5 {[%clk
0:00:05.4]} 50... Bc3 {[%clk 0:00:19.8]} 0-1

[Event "*** Titled Tuesday Blitz"]
[Site "Chess.com"]
[Date "2018.05.01"]
[Round "1"]
[White "chidori_boruto"]
[Black "PlotnikovPavel"]
[Result "1/2-1/2"]
[WhiteElo "2538"]
[BlackElo "2263"]
[TimeControl "180+2"]
[EndTime "13:09:33 PDT"]
[Termination "Game drawn by repetition"]

1. d4 {[%clk 0:03:01.9]} 1... e6 {[%clk 0:03:00.6]} 2. Bf4 {[%clk 0:03:02.5]}
2... f5 {[%clk 0:03:00.7]} 3. e3 {[%clk 0:03:03.4]} 3... Nf6 {[%clk 0:03:01.9]}
4. Nf3 {[%clk 0:03:03.9]} 4... b6 {[%clk 0:03:02.7]} 5. Be2 {[%clk 0:03:04.8]}
5... Bb7 {[%clk 0:03:03.8]} 6. O-O {[%clk 0:03:05.9]} 6... Be7 {[%clk 0:03:05]}
7. h3 {[%clk 0:03:06.9]} 7... O-O {[%clk 0:03:06.2]} 8. c4 {[%clk 0:03:08]} 8...
d6 {[%clk 0:03:05.7]} 9. Nc3 {[%clk 0:03:08.9]} 9... Ne4 {[%clk 0:03:06.2]} 10.
Rc1 {[%clk 0:03:09.1]} 10... Nd7 {[%clk 0:03:06.4]} 11. Bh2 {[%clk 0:03:09.5]}
11... Ndf6 {[%clk 0:03:04.8]} 12. b4 {[%clk 0:03:08]} 12... a5 {[%clk
0:03:04.7]} 13. a3 {[%clk 0:03:08.6]} 13... axb4 {[%clk 0:03:05.5]} 14. axb4
{[%clk 0:03:10.5]} 14... Nxc3 {[%clk 0:03:00.3]} 15. Rxc3 {[%clk 0:03:10.9]}
15... Ne4 {[%clk 0:03:00.5]} 16. Rc1 {[%clk 0:03:11.9]} 16... Qd7 {[%clk
0:02:30.3]} 17. Nd2 {[%clk 0:03:05.7]} 17... Nxd2 {[%clk 0:02:19.8]} 18. Qxd2
{[%clk 0:03:07.6]} 18... Rf6 {[%clk 0:02:06.9]} 19. Ra1 {[%clk 0:03:05.4]} 19...
Qc8 {[%clk 0:02:00.9]} 20. Rfc1 {[%clk 0:02:46]} 20... Rg6 {[%clk 0:02:01.5]}
21. Bf1 {[%clk 0:02:46.5]} 21... Be4 {[%clk 0:01:51.2]} 22. c5 {[%clk
0:02:19.6]} 22... bxc5 {[%clk 0:01:44.2]} 23. bxc5 {[%clk 0:02:20]} 23... Qb7
{[%clk 0:01:40.2]} 24. Rxa8+ {[%clk 0:02:04.5]} 24... Qxa8 {[%clk 0:01:42.1]}
25. f4 {[%clk 0:01:36.5]} 25... h6 {[%clk 0:01:27.2]} 26. cxd6 {[%clk
0:01:24.9]} 26... cxd6 {[%clk 0:01:25.1]} 27. g3 {[%clk 0:01:10.6]} 27... Bh4
{[%clk 0:01:22.6]} 28. Kf2 {[%clk 0:01:10.5]} 28... Bd8 {[%clk 0:01:20.8]} 29.
Qc3 {[%clk 0:01:03]} 29... Kh7 {[%clk 0:01:18.4]} 30. Qc8 {[%clk 0:00:59.8]}
30... Qa5 {[%clk 0:01:18.2]} 31. Qc3 {[%clk 0:00:58.5]} 31... Qa2+ {[%clk
0:01:16.2]} 32. Be2 {[%clk 0:00:59.6]} 32... Bh4 {[%clk 0:01:10.6]} 33. Ra1
{[%clk 0:00:55.5]} 33... Qd5 {[%clk 0:01:06.3]} 34. Bh5 {[%clk 0:00:48.4]} 34...
Bh1 {[%clk 0:00:49.8]} 35. Bxg6+ {[%clk 0:00:46.9]} 35... Kxg6 {[%clk
0:00:51.7]} 36. Rg1 {[%clk 0:00:28.7]} 36... Qf3+ {[%clk 0:00:49.6]} 37. Ke1
{[%clk 0:00:29.6]} 37... Bd8 {[%clk 0:00:48.7]} 38. Rf1 {[%clk 0:00:24.9]} 38...
Qg2 {[%clk 0:00:41.9]} 39. Rf2 {[%clk 0:00:24.7]} 39... Qe4 {[%clk 0:00:39.2]}
40. g4 {[%clk 0:00:22.2]} 40... Bf3 {[%clk 0:00:37.5]} 41. gxf5+ {[%clk
0:00:22.8]} 41... exf5 {[%clk 0:00:35.9]} 42. Kd2 {[%clk 0:00:21.6]} 42... Kh7
{[%clk 0:00:33.4]} 43. Qd3 {[%clk 0:00:21.1]} 43... Qd5 {[%clk 0:00:34.4]} 44.
Rxf3 {[%clk 0:00:20.4]} 44... Qxf3 {[%clk 0:00:34.7]} 45. Qxf5+ {[%clk
0:00:21.5]} 45... Kg8 {[%clk 0:00:34.5]} 46. Qe6+ {[%clk 0:00:22.5]} 46... Kh7
{[%clk 0:00:35.2]} 47. Qf5+ {[%clk 0:00:23.8]} 47... Kg8 {[%clk 0:00:36.3]} 48.
Qe6+ {[%clk 0:00:24.9]} 48... Kh7 {[%clk 0:00:19.4]} 49. Qf5+ {[%clk 0:00:24.9]}
49... Kg8 {[%clk 0:00:17.3]} 50. Qe6+ {[%clk 0:00:26]} 50... Kh7 {[%clk
0:00:18.1]} 51. Qf5+ {[%clk 0:00:25.5]} 51... Kg8 {[%clk 0:00:15.6]} 52. Qe6+
{[%clk 0:00:26]} 52... Kh7 {[%clk 0:00:16.5]} 53. Qf5+ {[%clk 0:00:25.9]}
1/2-1/2